[Event "1st Serbian League 2022"]
[Site "Vrnjacka Banja"]
[Date "2022.09.26"]
[Round "7.31"]
[White "Tadic, Stefan"]
[Black "Ioannidis, Evgenios"]
[Result "1-0"]
[ECO "A46"]
[WhiteElo "2318"]
[BlackElo "2486"]
[Annotator "ChessBase"]
[PlyCount "49"]
[EventDate "2022.09.20"]
[EventType "team-tourn"]
[EventCountry "SRB"]
[SourceTitle "playchess.com"]
[Source "ChessBase"]
[SourceQuality "1"]
[TimeControl "40/5400+30:1800+30"]

1. d4 {[%emt 0:00:38]} Nf6 {[%emt 0:00:30]} 2. Nf3 {[%emt 0:00:38]} e6 {[%emt 0:00:20]} 3. Bf4 {[%emt 0:00:23]} c5 {[%emt 0:00:36]} 4. e3 {[%emt 0:00:08]} Qb6 {[%emt 0:00:22]} 5. Nc3 {[%emt 0:11:41]} Nc6 {[%emt 0:08:48]} 6. Be2 {[%emt 0:08:19]} Nh5 {[%emt 0:06:41]} 7. d5 {[%emt 0:07:40]} Nxf4 {[%emt 0:00:54]} 8. exf4 {[%emt 0:00:08]} Nd4 {[%emt 0:00:51]} 9. O-O {[%emt 0:04:41]} Be7 {[%emt 0:05:39]} 10. Nxd4 {[%emt 0:07:02]} cxd4 {[%emt 0:00:13]} 11. Nb5 {[%emt 0:00:03]} Bf6 {[%emt 0:01:21]} 12. Qd3 {[%emt 0:00:07]} a6 {[%emt 0:09:34]} 13. Qa3 {[%emt 0:05:24]} Be7 {[%emt 0:10:41]} 14. d6 {[%emt 0:00:23]} Bf8 {[%emt 0:00:06]} 15. c4 {[%emt 0:00:53]} dxc3 {[%emt 0:03:40]} 16. bxc3 {[%emt 0:13:18]} Rb8 {[%emt 0:00:07]} 17. Nc7+ {[%emt 0:00:05]} Kd8 {[%emt 0:00:04]} 18. Rfd1 {[%emt 0:00:07]} Bxd6 {[%emt 0:00:05]} 19. Rxd6 {[%emt 0:00:05]} Qxc7 {[%emt 0:00:02]} 20. Rad1 {[%emt 0:00:08]} Ke8 {[%emt 0:03:36]} 21. c4 {[%emt 0:00:16]} b5 {[%emt 0:09:38]} 22. cxb5 {[%emt 0:07:15]} axb5 {[%emt 0:00:04]} 23. f5 {[%emt 0:00:05]} Qc2 {[%emt 0:03:28]} 24. Qg3 {[%emt 0:04:02]} Qxf5 {[%emt 0:00:05]} 25. Rxd7 {[%emt 0:00:27]} 1-0

[Event "1st Serbian League 2022"]
[Site "Vrnjacka Banja"]
[Date "2022.09.26"]
[Round "7.32"]
[White "Damljanovic, Branko"]
[Black "Ivanovic, Marko"]
[Result "1/2-1/2"]
[ECO "B45"]
[WhiteElo "2436"]
[BlackElo "2265"]
[Annotator "TA"]
[PlyCount "114"]
[EventDate "2022.09.20"]
[EventType "team-tourn"]
[EventCountry "SRB"]
[SourceTitle "playchess.com"]
[Source "ChessBase"]
[SourceQuality "1"]
[TimeControl "40/5400+30:1800+30"]

{[%evp 11,114,9,23,15,18,0,0,4,0,4,61,64,97,96,82,52,73,58,68,46,82,60,131,58,58,38,53,7,5,10,8,15,76,42,63,14,22,16,37,0,46,33,47,10,12,0,0,-20,0,0,0,0,0,0,0,0,0,0,0,0,0,0,0,0,0,0,0,0,22,10,52,0,0,0,0,0,0,0,2,14,22,0,0,0,0,0,0,0,0,0,0,0,0,0,0,0,0,0,0,0,0,0,0,0,0]} 1. Nf3 {[%emt 1:31:00]} c5 {[%emt 0:05:05]} 2. e4 {[%emt 0:00:00]} Nc6 {[%emt 0:03:40]} 3. d4 {[%emt 0:00:00]} cxd4 {[%emt 0:00:06]} 4. Nxd4 {[%emt 0:00:00]} Nf6 {[%emt 0:00:06]} 5. Nc3 {[%emt 0:00:00]} e6 {[%emt 0:00:10]} 6. a3 {[%emt 0:00:00]} Qc7 {[%emt 0:05:02]} 7. Be2 {[%emt 0:00:00] B45: Sicilian Four Knights.} a6 {[%emt 0:00:14]} 8. f4 {[%emt 0:00:00]} Nxd4 {[%emt 0:11:16]} 9. Qxd4 {[%emt 0:00:00]} Bc5 {[%emt 0:00:12]} 10. Qd3 {[%emt 0:00:00]} d6 {[%emt 0:00:51]} (10... d5 $11) 11. Be3 $14 {[%emt 0:00:00]} b5 {[%emt 0:09:05]} 12. Bxc5 {[%emt 0:00:00]} Qxc5 {[%emt 0:06:01]} 13. O-O-O {[%emt 0:00:00]} Bb7 {[%emt 0:01:34]} 14. Bf3 {[%emt 0:00:00] [#] Hoping for e5.} (14. Qxd6 Qxd6 15. Rxd6 Nxe4 16. Nxe4 Bxe4 $11) 14... O-O-O $1 {[%emt 0:04:03] [#]} 15. Rhe1 $146 {[%emt 0:00:00]} ({Predecessor:} 15. Kb1 Kb8 16. Rhe1 Rd7 17. g4 Rhd8 18. g5 Ne8 19. h4 Nc7 20. Qd4 Qxd4 21. Rxd4 {1-0 (51) Hirneise,J (2373)-Matt,F (2283) Germany 2019}) 15... Qb6 {[%emt 0:18:49]} 16. g4 {[%emt 0:00:00]} d5 {[%emt 0:03:07]} (16... Kb8 $14) 17. e5 {[%emt 0:00:00]} (17. exd5 $16 {And now d6 would win.} Nxd5 18. Nxd5 Bxd5 19. Bxd5 Rxd5 20. Qc3+ Qc5 21. Qxg7) 17... Nd7 {[%emt 0:00:05]} 18. Qd4 {[%emt 0:00:00]} Nc5 {[%emt 0:01:19]} 19. b4 {[%emt 0:00:00]} (19. Kb1 $14 {is more appropriate.}) 19... Nd7 $1 $11 {[%emt 0:00:10]} 20. a4 {[%emt 0:00:00]} bxa4 {[%emt 0:03:25]} 21. Nxa4 {[%emt 0:00:00]} Qc6 {[%emt 0:04:33]} (21... Qxd4 $11 22. Rxd4 Bc6) 22. Nb2 {[%emt 0:00:00] White is more active.} Kb8 {[%emt 0:03:24]} 23. Kb1 {[%emt 0:00:00]} (23. c4 $14) 23... Nb6 {[%emt 0:02:08]} (23... Rc8 24. c4 $14) 24. Rc1 {[%emt 0:00:00]} Qc7 {[%emt 0:01:13]} 25. Re3 {[%emt 0:00:00]} Rc8 {[%emt 0:00:40]} (25... Nc4 $11 {is superior.}) 26. Be2 $14 {[%emt 0:00:00]} Rhd8 {[%emt 0:00:13]} 27. Ra3 {[%emt 0:00:00]} Nc4 {[%emt 0:00:13]} 28. Bxc4 {[%emt 0:00:00]} dxc4 {[%emt 0:00:05]} 29. Qe3 {[%emt 0:00:00]} Qd7 {[%emt 0:01:51]} 30. Rd1 {[%emt 0:04:12]} Qb5 {[%emt 0:02:12]} 31. c3 {[%emt 0:00:14]} Rxd1+ {[%emt 0:00:20]} 32. Nxd1 {[%emt 0:00:02]} Qd5 {[%emt 0:01:21]} 33. Nf2 {[%emt 0:00:01]} Rd8 {[%emt 0:00:40]} 34. Ra2 {[%emt 0:00:42]} ({Don't blunder} 34. Qb6 $2 Qd2 35. Qxd8+ Qxd8 $19) 34... Qg2 {[%emt 0:00:27]} 35. Rd2 {[%emt 0:04:03]} (35. Qb6 {gets mated.} Qf1+ 36. Kc2 Qe2+ 37. Kc1 Qe1+ 38. Kb2 Rd2+ 39. Ka3 Qc1+) 35... Rd5 {[%emt 0:04:29]} 36. Rxd5 {[%emt 0:01:41]} Qxd5 $11 {[%emt 0:00:05][%mdl 4096] Endgame KQB-KQN} 37. Qd4 {[%emt 0:02:36]} Qf3 {[%emt 0:01:08]} ({Don't do} 37... Qxd4 38. cxd4 Bf3 39. Kc2 $14) 38. Kc1 {[%emt 0:01:39]} Qe2 {[%emt 0:02:19]} 39. h3 {[%emt 0:00:16]} h6 {[%emt 0:00:29]} 40. Qd6+ {[%emt 0:02:37]} Ka8 {[%emt 0:01:08]} 41. Qd8+ {[%emt 0:30:08]} ({White should play} 41. Nd1 $14) 41... Ka7 {[%emt 0:30:05] The position is equal.} 42. Qd2 {[%emt 0:00:05]} Qf3 {[%emt 0:01:20]} 43. Qd4+ {[%emt 0:00:25]} Ka8 {[%emt 0:00:29]} 44. Kd2 {[%emt 0:00:07]} f6 {[%emt 0:01:51]} 45. exf6 {[%emt 0:00:00]} gxf6 {[%emt 0:00:00]} 46. Ke1 {[%emt 0:00:00]} Bd5 {[%emt 0:00:00]} 47. h4 {[%emt 0:00:00]} Kb7 {[%emt 0:00:00]} 48. Qxf6 {[%emt 0:00:00]} Qe3+ {[%emt 0:00:00]} 49. Kf1 {[%emt 0:00:00] Dancing on a razor blade.} Qc1+ {[%emt 0:00:00]} 50. Ke2 {[%emt 0:00:00] aiming for Qg7+.} Qc2+ {[%emt 0:00:00]} 51. Ke1 {[%emt 0:00:00]} Qb1+ {[%emt 0:00:00]} 52. Nd1 {[%emt 0:00:00]} Qe4+ {[%emt 0:00:00]} 53. Kd2 {[%emt 0:02:44] [#] Threatens to win with Qg7+.} Qd3+ {[%emt 0:00:00]} 54. Kc1 {[%emt 0:01:28] Black must now prevent Qd4.} Be4 {[%emt 0:00:00][%csl Ge4][%cal Rd3c2]} 55. Qe7+ {[%emt 0:00:29]} Ka8 {[%emt 0:00:00][%csl Ge4][%cal Rd3c2]} 56. Qf8+ {[%emt 0:01:58]} Kb7 {[%emt 0:00:00][%csl Ge4][%cal Rd3c2]} 57. Qe7+ {[%emt 0:00:47]} Ka8 {[%emt 0:00:00] Weighted Error Value: White=0.11 (very precise) /Black=0.10 (very precise)} 1/2-1/2

[Event "1st Serbian League 2022"]
[Site "Vrnjacka Banja"]
[Date "2022.09.26"]
[Round "7.33"]
[White "Sarenac, Ivan"]
[Black "Tadic, Branko"]
[Result "1/2-1/2"]
[ECO "B38"]
[WhiteElo "2402"]
[BlackElo "2455"]
[Annotator "TA"]
[PlyCount "140"]
[EventDate "2022.09.20"]
[EventType "team-tourn"]
[EventCountry "SRB"]
[SourceTitle "playchess.com"]
[Source "ChessBase"]
[SourceQuality "1"]
[TimeControl "40/5400+30:1800+30"]

{[%evp 19,140,40,60,34,45,0,3,5,14,5,45,30,39,21,58,9,4,11,10,6,7,8,14,0,0,0,0,-14,-9,-18,-17,-14,0,0,0,0,0,0,0,0,0,0,0,0,0,0,0,0,0,0,0,0,0,0,0,0,0,0,0,0,0,0,0,0,0,0,0,0,0,0,2,0,0,0,0,0,0,0,0,0,0,0,0,0,0,0,0,0,0,0,0,0,0,0,0,0,0,0,0,0,0,0,0,0,0,0,0,0,0,0,0,0,0,0,0,0,0,0,0,0,0,0,0]} 1. e4 {[%emt 0:00:03]} c5 {[%emt 0:09:09]} 2. Nf3 {[%emt 0:00:15]} Nc6 {[%emt 0:00:51]} 3. d4 {[%emt 0:00:17]} cxd4 {[%emt 0:00:06]} 4. Nxd4 {[%emt 0:00:04]} g6 {[%emt 0:00:10]} 5. c4 {[%emt 0:01:25]} Bg7 {[%emt 0:00:15]} 6. Be3 {[%emt 0:00:18]} Nf6 {[%emt 0:03:56]} 7. Nc3 {[%emt 0:00:27]} O-O {[%emt 0:00:40]} 8. Be2 {[%emt 0:05:03]} d6 {[%emt 0:00:20]} 9. O-O {[%emt 0:02:30]} Bd7 {[%emt 0:01:32]} 10. h3 {[%emt 0:03:23]} Rc8 {[%emt 0:01:25]} 11. f4 {[%emt 0:01:03] B38: Sicilian: Maroczy Bind with 5...Bg7 and 7...0-0.} a6 {[%emt 0:01:07]} 12. Rc1 {[%emt 0:13:15]} Nxd4 {[%emt 0:04:28]} 13. Bxd4 {[%emt 0:00:10]} Bc6 {[%emt 0:00:16]} (13... b5 {is interesting.} 14. cxb5 Bxb5 15. f5 Qa5) 14. Qd3 {[%emt 0:00:53] [#]} Nd7 $146 {[%emt 0:15:14]} (14... b5 $5) ({Predecessor:} 14... b5 15. cxb5 axb5 16. Nd5 Nxd5 17. exd5 Bxd4+ 18. Qxd4 Bd7 19. Rfe1 Qa5 20. a3 Rc7 21. Rxc7 Qxc7 {0-1 (42) Foldesi,M (2040)-Nagy,A (2058) Slovakia 2017}) 15. Bxg7 {[%emt 0:01:56]} Kxg7 {[%emt 0:00:10]} 16. Bg4 {[%emt 0:00:07]} Kg8 {[%emt 0:09:46]} 17. Bxd7 {[%emt 0:01:45]} (17. b4 $14) 17... Qxd7 $11 {[%emt 0:02:07] The position is equal.} 18. f5 {[%emt 0:16:23]} b5 {[%emt 0:01:53]} 19. b3 {[%emt 0:00:10]} bxc4 {[%emt 0:02:36]} 20. bxc4 {[%emt 0:00:06]} f6 {[%emt 0:07:25]} 21. fxg6 {[%emt 0:16:06]} hxg6 {[%emt 0:00:26]} 22. e5 {[%emt 0:00:36]} f5 {[%emt 0:05:29]} 23. Rcd1 {[%emt 0:11:00]} Qa7+ {[%emt 0:05:45]} 24. Kh1 {[%emt 0:00:33]} dxe5 {[%emt 0:00:13]} 25. Qg3 {[%emt 0:00:11][%csl LRe5,LRg6]} Kh7 {[%emt 0:07:08]} 26. Qxe5 {[%emt 0:00:43]} Qc7 {[%emt 0:00:11]} 27. Qe1 {[%emt 0:06:02]} e5 {[%emt 0:04:47]} 28. Nd5 {[%emt 0:04:27]} Bxd5 {[%emt 0:01:08]} 29. Rxd5 {[%emt 0:08:18] And now c5 would win.} Qxc4 {[%emt 0:03:20]} 30. Rxe5 {[%emt 0:00:07]} (30. Rd7+ {seems wilder.} Kh6 31. Rd6 Rfd8 32. Rf6) 30... Rce8 {[%emt 0:03:53] [#] ...Rxe5 is the strong threat.} 31. Rf2 {[%emt 0:02:38]} Rxe5 {[%emt 0:03:16]} 32. Qxe5 {[%emt 0:00:08][%mdl 4096] Endgame KQR-KQR} f4 {[%emt 0:00:06]} 33. Kh2 {[%emt 0:02:04]} Rf5 {[%emt 0:00:29]} 34. Qe7+ {[%emt 0:00:38]} Rf7 {[%emt 0:00:26]} 35. Qd6 {[%emt 0:00:42]} a5 {[%emt 0:02:08]} 36. a3 {[%emt 0:01:15]} a4 {[%emt 0:00:23]} 37. Rf3 {[%emt 0:00:11]} Qe4 {[%emt 0:00:38]} 38. Qd1 {[%emt 0:01:52]} Rf5 {[%emt 0:02:01]} 39. Qd7+ {[%emt 0:01:25]} Kh6 {[%emt 0:00:20]} 40. Qd8 {[%emt 0:00:23]} Kg7 {[%emt 0:00:23]} ({Don't do} 40... Qe5 41. Qd3 $14) 41. Qd2 {[%emt 0:10:34]} Rf7 {[%emt 0:05:20]} 42. Qc3+ {[%emt 0:03:33]} Kh7 {[%emt 0:00:15]} 43. Rd3 {[%emt 0:00:53]} Re7 {[%emt 0:06:25]} 44. Rf3 {[%emt 0:05:51] Strongly threatening Qf6.} Rf7 {[%emt 0:01:20] Inhibits Qf6.} 45. Qa5 {[%emt 0:01:50]} Rf5 {[%emt 0:00:10]} 46. Qa7+ {[%emt 0:02:54]} Kh6 {[%emt 0:00:09]} 47. Qc7 {[%emt 0:00:17]} Qd4 {[%emt 0:00:52]} 48. Qe7 {[%emt 0:01:32]} Rf6 {[%emt 0:00:13]} 49. Qe2 {[%emt 0:01:23]} Rb6 {[%emt 0:02:48]} 50. Rd3 {[%emt 0:01:57]} Qf6 {[%emt 0:00:36]} 51. Qd1 {[%emt 0:03:12]} Rb2 {[%emt 0:00:46]} 52. Qc1 {[%emt 0:00:10]} Rb3 {[%emt 0:03:31]} 53. Qd1 {[%emt 0:00:25]} Rb2 {[%emt 0:02:42]} 54. Qc1 {[%emt 0:00:06]} Rb3 {[%emt 0:04:42]} 55. Qd1 {[%emt 0:00:05]} Qe5 {[%emt 0:00:04]} 56. Kh1 {[%emt 0:02:48]} (56. Rxb3 $2 axb3 57. Qd8 b2 58. Qf8+ Kh5 $19) 56... Qb5 {[%emt 0:05:23]} 57. Rd5 {[%emt 0:00:07]} Qb8 {[%emt 0:02:25] [#] ( -> ...Rb1)} 58. Rd8 {[%emt 0:01:21]} Qb6 {[%emt 0:01:08] Hoping for ...Rb1.} 59. Qd4 {[%emt 0:01:05]} Qxd4 {[%emt 0:01:58]} 60. Rxd4 {[%emt 0:00:04] KR-KR} f3 {[%emt 0:00:08]} 61. gxf3 {[%emt 0:00:22]} ({Not} 61. Rh4+ $2 Kg5 62. Rg4+ Kf5 63. gxf3 Rxa3 $19) 61... Rxa3 {[%emt 0:00:03]} 62. Kg2 {[%emt 0:00:42]} Ra1 {[%emt 0:00:08]} 63. Rd5 {[%emt 0:00:42]} g5 {[%emt 0:00:31]} 64. Ra5 {[%emt 0:00:17]} a3 {[%emt 0:00:11]} 65. Kg3 {[%emt 0:00:13]} Kg6 {[%emt 0:00:11]} 66. Kg2 {[%emt 0:00:47]} Kf6 {[%emt 0:00:16]} 67. Kh2 {[%emt 0:00:05]} a2 {[%emt 0:00:14]} 68. Kg2 {[%emt 0:00:29]} Ke6 {[%emt 0:00:07]} 69. Ra6+ {[%emt 0:00:49]} Kd5 {[%emt 0:00:03]} 70. Ra8 {[%emt 0:00:15]} Kd4 {[%emt 0:00:20] Weighted Error Value: White=0.05 (flawless) /Black=0.03 (flawless)} 1/2-1/2

[Event "1st Serbian League 2022"]
[Site "Vrnjacka Banja"]
[Date "2022.09.26"]
[Round "7.34"]
[White "Nikolovski, Nikola"]
[Black "Arsovic, Zoran"]
[Result "0-1"]
[ECO "B21"]
[WhiteElo "2359"]
[BlackElo "2362"]
[Annotator "RC"]
[PlyCount "80"]
[EventDate "2022.09.20"]
[EventType "team-tourn"]
[EventCountry "SRB"]
[SourceTitle "playchess.com"]
[Source "ChessBase"]
[SourceQuality "1"]
[TimeControl "40/5400+30:1800+30"]

1. e4 {[%emt 0:00:06]} c5 {[%emt 0:00:23]} 2. f4 {[%emt 0:00:11]} d5 {[%emt 0:03:22]} 3. d3 {[%emt 0:00:11]} Nc6 {[%emt 0:00:39]} 4. Be2 {[%emt 0:01:09]} g6 {[%emt 0:02:29]} 5. Nf3 {[%emt 0:00:58]} Bg7 {[%emt 0:06:58]} 6. O-O {[%emt 0:00:37]} b6 {[%emt 0:02:14]} 7. c3 {[%emt 0:07:57]} Bb7 {[%emt 0:01:08]} 8. Na3 {[%emt 0:05:16]} Nh6 {[%emt 0:07:56]} 9. Qe1 {[%emt 0:01:55]} e6 {[%emt 0:08:44]} 10. Nc2 {[%emt 0:05:19]} O-O {[%emt 0:14:44]} 11. h3 {[%emt 0:17:49]} Rc8 {[%emt 0:09:19]} 12. Bd2 {[%emt 0:17:08]} Qe7 {[%emt 0:05:45]} 13. e5 {[%emt 0:11:24]} f6 {[%emt 0:02:19]} 14. d4 {[%emt 0:01:36]} Nf7 {[%emt 0:04:29]} 15. Rc1 {[%emt 0:05:53]} Na5 {[%emt 0:07:43]} 16. b3 {[%emt 0:01:08]} Rc7 {[%emt 0:02:07]} 17. Ne3 {[%emt 0:05:16]} Nc6 {[%emt 0:01:50]} 18. h4 {[%emt 0:00:52]} Nh6 {[%emt 0:03:35]} 19. h5 {[%emt 0:02:53]} fxe5 {[%emt 0:00:36]} 20. dxe5 {[%emt 0:04:21]} d4 {[%emt 0:05:48]} 21. Nc4 {[%emt 0:01:55]} dxc3 {[%emt 0:00:33]} 22. Rxc3 {[%emt 0:00:21]} Nf5 {[%emt 0:01:19]} 23. hxg6 {[%emt 0:00:18]} hxg6 {[%emt 0:00:08]} 24. Ng5 {[%emt 0:03:47]} Ncd4 {[%emt 0:00:58]} 25. Rh3 {[%emt 0:00:50]} Qd7 {[%emt 0:03:19]} 26. Bd3 {[%emt 0:03:03]} b5 {[%emt 0:02:56]} 27. Na5 {[%emt 0:00:24]} c4 {[%emt 0:00:17]} 28. Bb1 {[%emt 0:00:17]} Ba8 {[%emt 0:00:46]} 29. g4 {[%emt 0:00:06]} Ne7 {[%emt 0:01:17]} 30. Qf2 {[%emt 0:01:02]} c3 {[%emt 0:00:36]} 31. Bxc3 {[%emt 0:01:09]} Rxf4 {[%emt 0:00:05]} 32. Qh4 {[%emt 0:00:48]} Ne2+ {[%emt 0:00:33]} 33. Kh2 {[%emt 0:00:04]} Rxf1 {[%emt 0:01:00]} 34. Be4 {[%emt 0:00:51]} Rxc3 {[%emt 0:00:26]} 35. Qh7+ {[%emt 0:00:34]} Kf8 {[%emt 0:00:05]} 36. Rxc3 {[%emt 0:00:31]} Nxc3 {[%emt 0:00:37]} 37. Bxa8 {[%emt 0:00:17]} Qd2+ {[%emt 0:00:23]} 38. Bg2 {[%emt 0:00:05]} Bxe5+ {[%emt 0:00:13]} 39. Kh3 {[%emt 0:00:05]} Rh1+ {[%emt 0:00:20]} 40. Bxh1 {[%emt 0:00:04]} Qh2# {[%emt 0:00:09]} 0-1

[Event "1st Serbian League 2022"]
[Site "Vrnjacka Banja"]
[Date "2022.09.26"]
[Round "7.35"]
[White "Radusinovic, Lazar"]
[Black "Zlatanovic, Boroljub"]
[Result "1/2-1/2"]
[ECO "E62"]
[WhiteElo "2308"]
[BlackElo "2313"]
[Annotator "TA"]
[PlyCount "67"]
[EventDate "2022.09.20"]
[EventType "team-tourn"]
[EventCountry "SRB"]
[SourceTitle "playchess.com"]
[Source "ChessBase"]
[SourceQuality "1"]
[TimeControl "40/5400+30:1800+30"]

{[%evp 20,67,20,12,13,10,18,0,4,0,0,0,0,0,0,0,7,9,10,10,11,8,6,6,5,0,0,0,0,0,0,0,6,-9,0,-2,-2,-9,0,0,0,0,0,0,0,0,0,0,0,0]} 1. d4 {[%emt 0:00:02]} Nf6 {[%emt 0:00:20]} 2. Nf3 {[%emt 0:00:06]} g6 {[%emt 0:00:07]} 3. g3 {[%emt 0:00:06]} Bg7 {[%emt 0:00:09]} 4. Bg2 {[%emt 0:00:04]} O-O {[%emt 0:00:13]} 5. O-O {[%emt 0:00:06]} d6 {[%emt 0:00:11]} 6. c4 {[%emt 0:00:07]} Nc6 {[%emt 0:00:40]} 7. Nc3 {[%emt 0:00:20]} e5 {[%emt 0:00:37]} 8. dxe5 {[%emt 0:00:24]} Nxe5 {[%emt 0:00:14]} 9. Nxe5 {[%emt 0:01:35]} dxe5 {[%emt 0:00:24]} 10. Bg5 {[%emt 0:00:24]} Qxd1 {[%emt 0:01:02]} 11. Rfxd1 $1 {[%emt 0:02:09] The position is equal. The main line 11.Rfxd1 scores better than 11.Raxd1.} c6 {[%emt 0:02:16] Inhibits Nb5. E62: King's Indian: Fianchetto: 6...c6 and Panno Variation (6...Nc6) without ...a6.} 12. b4 {[%emt 0:07:04]} Be6 {[%emt 0:01:48]} 13. Rac1 {[%emt 0:02:50]} h6 {[%emt 0:03:30]} (13... Bxc4 $2 14. Bxf6 Bxf6 15. Ne4 $18) 14. Bxf6 {[%emt 0:02:20]} Bxf6 {[%emt 0:00:05]} 15. b5 {[%emt 0:00:44] [#]} Rac8 $146 {[%emt 0:03:02]} ({Predecessor:} 15... Bg5 16. Rc2 Bxc4 17. h4 Be7 18. Rd7 Bb4 19. bxc6 bxc6 20. Bxc6 Rac8 21. Bb7 Rcd8 {½-½ (28) Maghalashvili,G-Ryskin,A Jurmala 1980}) 16. bxc6 {[%emt 0:20:10]} bxc6 {[%emt 0:00:06]} 17. Rd6 {[%emt 0:00:49]} Be7 {[%emt 0:07:11] A strong pair of Bishops.} 18. Rxc6 {[%emt 0:04:18]} Rxc6 {[%emt 0:00:45]} 19. Bxc6 {[%emt 0:00:07]} Bxc4 {[%emt 0:00:46]} 20. Nd5 {[%emt 0:05:09]} Bxd5 {[%emt 0:00:35]} 21. Bxd5 $11 {[%emt 0:00:42][%mdl 4096] Endgame KRB-KRB} Rd8 {[%emt 0:03:06]} 22. e4 {[%emt 0:00:14]} Rd7 {[%emt 0:01:17] Inhibits Rc7.} 23. Kg2 {[%emt 0:02:23]} Kg7 {[%emt 0:03:25]} 24. f4 {[%emt 0:01:12]} Bd6 {[%emt 0:03:44]} 25. Kf3 {[%emt 0:00:28]} Rc7 {[%emt 0:00:32]} 26. Bc6 {[%emt 0:00:49]} Kf6 {[%emt 0:03:11]} 27. h4 {[%emt 0:00:36]} h5 {[%emt 0:03:14]} 28. Rc4 {[%emt 0:00:21]} Ke7 {[%emt 0:02:13]} 29. f5 {[%emt 0:00:58]} Kf6 {[%emt 0:01:12]} 30. g4 {[%emt 0:00:43]} hxg4+ {[%emt 0:00:42]} 31. Kxg4 {[%emt 0:00:38]} Rc8 {[%emt 0:04:44]} 32. fxg6 {[%emt 0:00:47]} fxg6 {[%emt 0:01:45]} 33. Bd5 {[%emt 0:00:14]} Rxc4 {[%emt 0:00:17]} 34. Bxc4 {[%emt 0:00:30] An uneventful encounter.  Weighted Error Value: White=0.03 (flawless) /Black=0.02 (flawless)} 1/2-1/2

[Event "1st Serbian League 2022"]
[Site "Vrnjacka Banja"]
[Date "2022.09.26"]
[Round "7.36"]
[White "Radlovacki, Jovan"]
[Black "Todorovic, Goran N"]
[Result "1-0"]
[ECO "C66"]
[WhiteElo "2287"]
[BlackElo "2305"]
[Annotator "TA"]
[PlyCount "61"]
[EventDate "2022.09.20"]
[EventType "team-tourn"]
[EventCountry "SRB"]
[SourceTitle "playchess.com"]
[Source "ChessBase"]
[SourceQuality "1"]
[TimeControl "40/5400+30:1800+30"]

{[%evp 14,61,45,16,38,42,70,39,55,37,79,85,108,61,58,58,70,62,101,104,118,116,124,85,91,101,182,113,139,114,117,128,171,159,245,244,480,480,1052,1052,1047,1052,1044,1025,986,944,29993,29994,29994,29995]} 1. e4 {[%emt 0:00:51]} e5 {[%emt 0:00:16]} 2. Nf3 {[%emt 0:00:07]} Nc6 {[%emt 0:00:10]} 3. Bb5 {[%emt 0:00:10]} d6 {[%emt 0:01:54]} 4. d4 {[%emt 0:01:59]} Bd7 {[%emt 0:00:55]} 5. O-O {[%emt 0:01:43]} Nf6 {[%emt 0:00:18]} 6. Re1 {[%emt 0:04:21]} Be7 {[%emt 0:03:22]} 7. c3 {[%emt 0:18:02]} O-O {[%emt 0:01:56]} 8. h3 {[%emt 0:00:54]} h6 {[%emt 0:02:53] C66: Ruy Lopez: Steinitz Defence.} 9. Bd3 {[%emt 0:04:27]} Re8 {[%emt 0:01:51]} 10. Nbd2 {[%emt 0:01:11][%cal Bb1d2,Bd2f1,Bf1g3][%mdl 32]} Bf8 {[%emt 0:01:35] White is slightly better.} 11. Nf1 {[%emt 0:00:36] [#]} g6 $146 {[%emt 0:07:48]} ({Predecessor:} 11... a6 12. Ng3 g6 13. Bd2 Bg7 14. Qc2 Qe7 15. Rad1 Rad8 16. a3 Kh7 17. Qb3 Bc8 18. Qa2 {1-0 (47) Ojeda,H (2226)-Jungblut,J (2123) Villa Ballester 2006}) 12. Ng3 {[%emt 0:02:04]} Bg7 {[%emt 0:00:14]} 13. d5 {[%emt 0:05:15]} (13. Be3 $16) 13... Nb8 $14 {[%emt 0:09:07]} 14. Be3 {[%emt 0:02:21]} a5 {[%emt 0:07:15]} 15. c4 {[%emt 0:07:09]} c5 {[%emt 0:05:22]} 16. Qd2 {[%emt 0:10:09]} Kh7 {[%emt 0:00:17]} 17. Nh2 {[%emt 0:00:37] White is more active.} Qc7 {[%emt 0:21:57]} 18. f4 {[%emt 0:02:17]} exf4 {[%emt 0:02:46]} 19. Bxf4 {[%emt 0:00:14]} Ra6 {[%emt 0:01:03]} (19... Bc8 $16 {was called for.}) 20. Rf1 {[%emt 0:04:28]} (20. Nf3 $18) 20... Re7 {[%emt 0:02:57] Against e5} 21. Rae1 {[%emt 0:06:42] aiming for Nf3.} Bc8 {[%emt 0:03:27]} 22. Nf3 {[%emt 0:09:08] [#] And now e5 would win.} Ng8 {[%emt 0:03:46]} 23. Ne2 {[%emt 0:01:51]} Bd7 {[%emt 0:02:34]} (23... Nd7 $16 24. Nc3 Ne5) 24. Nc3 $18 {[%emt 0:01:03]} Bxc3 $2 {[%emt 0:03:46]} (24... Be8 {was necessary.} 25. g4 Bxc3 26. Qxc3 f6) 25. Qxc3 {[%emt 0:00:17]} ({Less strong is} 25. bxc3 f6 26. g4 Be8 $16) 25... f6 {[%emt 0:00:06]} (25... Be8 $142 26. e5 dxe5) 26. e5 {[%emt 0:04:35]} dxe5 {[%emt 0:03:53] [#]} 27. Nxe5 $1 {[%emt 0:00:32][%mdl 512]} fxe5 {[%emt 0:07:52]} 28. Bxe5 {[%emt 0:00:17] This bishop pair is nice.} Qd8 {[%emt 0:04:36]} 29. d6 {[%emt 0:01:02]} Nc6 {[%emt 0:00:30]} 30. Bxg6+ {[%emt 0:02:15][%mdl 64] Decoy} Kxg6 {[%emt 0:00:08]} 31. Qd3+ {[%emt 0:00:00] Weighted Error Value: White=0.15 (very precise) /Black=0.72} 1-0